bitfinex/quotes_BTCUSD_20250608
["timestamp","ask_amount","ask_price","bid_price","bid_amount"]
[1749399392790,0.29480467,106220.0,106210.0,0.07909614]
[1749399393000,0.33282845,106220.0,106210.0,0.07909614]
[1749399393236,0.76922793,106220.0,106210.0,0.0318]
[1749399393451,0.80939621,106220.0,106210.0,0.0318]
[1749399393659,0.83755469,106220.0,106210.0,0.0318]
[1749399393870,0.20715567,106200.0,106190.0,0.12264344]
[1749399394093,0.58191567,106200.0,106190.0,0.07859614]
[1749399394307,0.20715567,106200.0,106190.0,0.07859614]
[1749399394527,0.58191567,106200.0,106190.0,0.07859614]
[1749399396047,0.58191567,106200.0,106190.0,0.08959614]
[1749399396244,0.65893937,106200.0,106190.0,0.08959614]
[1749399396690,0.58191567,106200.0,106190.0,0.08959614]
[1749399396914,1.41027567,106200.0,106190.0,0.0423]
[1749399397137,1.52911424,106200.0,106190.0,0.0265]
[1749399397739,1.52911424,106200.0,106190.0,0.011]
[1749399397960,1.64823788,106200.0,106190.0,0.011]
[1749399398162,1.67639427,106200.0,106190.0,0.011]
[1749399398360,1.65367011,106200.0,106190.0,0.011]
[1749399399009,1.69124635,106200.0,106190.0,0.011]
[1749399399154,1.69124635,106200.0,106190.0,0.005]
[1749399399351,1.69124635,106200.0,106190.0,0.007]
[1749399399552,1.22008687,106200.0,106190.0,0.002]
[1749399399754,1.52963424,106200.0,106190.0,0.0339]
[1749399399956,1.15435424,106200.0,106190.0,0.0339]
[1749399400156,0.18835938,106180.0,106170.0,0.79833828]
[1749399400356,0.27603938,106180.0,106170.0,0.79833828]
[1749399400772,0.20723373,106160.0,106150.0,0.0753473]
[1749399400970,0.20723373,106160.0,106150.0,0.97879794]
[1749399401515,0.2072817,106160.0,106150.0,0.97879882]
[1749399401865,0.2072817,106160.0,106150.0,0.17174678]
[1749399402067,0.2072817,106160.0,106150.0,0.97879874]
[1749399402275,0.2072817,106160.0,106150.0,0.97879906]
[1749399402476,0.2072817,106160.0,106150.0,0.10511348]
[1749399402899,0.2072817,106160.0,106150.0,0.09639948]
[1749399403109,0.2072817,106160.0,106150.0,0.12829948]
[1749399403519,0.2082817,106160.0,106150.0,0.13429948]
[1749399403724,0.2969617,106160.0,106150.0,0.14129948]
[1749399404810,0.2092817,106160.0,106150.0,0.93963776]
[1749399405024,0.2092817,106160.0,106150.0,1.12805038]
[1749399405240,0.2092817,106160.0,106150.0,1.16143222]
[1749399405470,0.2092817,106160.0,106150.0,1.1614324]
[1749399405680,0.2092817,106160.0,106150.0,1.46001276]
[1749399405949,0.1832624,106160.0,106150.0,1.25275924]
[1749399406204,0.1832624,106160.0,106150.0,0.43800033]
[1749399406205,0.17284284,106160.0,106150.0,0.43800033]
[1749399406414,0.17184284,106160.0,106150.0,1.42817186]
[1749399406619,0.17284284,106160.0,106150.0,1.43717186]
[1749399406826,0.17384284,106160.0,106150.0,1.25675924]
[1749399407029,0.17384284,106160.0,106150.0,1.24733861]
[1749399407667,0.17384284,106160.0,106150.0,1.44517186]
[1749399407902,0.17384284,106160.0,106150.0,1.24733861]
[1749399408146,0.17384284,106160.0,106150.0,1.25675924]
[1749399408418,0.17384284,106160.0,106150.0,1.44517186]
[1749399408673,0.17384284,106160.0,106150.0,1.24733861]
[1749399410959,0.17384284,106160.0,106150.0,1.54563861]
[1749399413979,0.17384284,106160.0,106150.0,1.55522356]
[1749399416713,0.01146753,106160.0,106150.0,1.77189699]
[1749399416926,0.02088683,106160.0,106150.0,1.77189717]
[1749399417152,0.21870135,106160.0,106150.0,1.80019517]
[1749399418370,0.20928205,106160.0,106150.0,0.9736359]
[1749399418609,0.19986249,106160.0,106150.0,1.58356156]
[1749399419272,0.19986249,106160.0,106150.0,1.77197418]
[1749399419509,0.19986249,106160.0,106150.0,1.58356156]
[1749399419717,0.19044284,106160.0,106150.0,1.58356156]
[1749399419937,0.19044284,106160.0,106150.0,1.59298219]
[1749399420546,0.19044284,106160.0,106150.0,1.78139481]
[1749399420774,0.19044284,106160.0,106150.0,1.79081535]
[1749399420996,0.2281202,106160.0,106150.0,1.80023562]
[1749399421198,0.2281202,106160.0,106150.0,1.8096558]
[1749399421416,0.2281202,106160.0,106150.0,1.81907589]
[1749399421849,0.03972533,106160.0,106150.0,1.81907526]
[1749399422045,0.2281202,106160.0,106150.0,1.79827406]
[1749399422258,0.20928187,106160.0,106150.0,1.78885388]
[1749399422713,0.19044284,106160.0,106150.0,0.78362217]
[1749399422949,0.19044284,106160.0,106150.0,1.7797937]
[1749399424110,0.19044284,106160.0,106150.0,1.78921424]
[1749399424544,0.19044284,106160.0,106150.0,1.59138108]
[1749399425407,0.19044284,106160.0,106150.0,1.58196045]
[1749399425627,0.19044284,106160.0,106150.0,1.77979352]
[1749399428046,0.19044284,106160.0,106150.0,1.77037307]
[1749399428267,0.19044284,106160.0,106150.0,1.7797937]
[1749399428478,0.19044284,106160.0,106150.0,1.58180045]
[1749399428939,0.19044284,106160.0,106150.0,1.29340045]
[1749399429163,0.19044284,106160.0,106150.0,0.78346217]
[1749399429614,0.19044284,106160.0,106150.0,1.09516417]
[1749399432263,0.19044284,106160.0,106150.0,1.89350245]
[1749399432488,0.19044284,106160.0,106150.0,1.55350245]
[1749399438323,0.19044284,106160.0,106150.0,1.26510245]
[1749399438575,0.19044284,106160.0,106150.0,1.52124245]
[1749399439168,0.19044284,106160.0,106150.0,0.73790417]
[1749399440408,0.19044284,106160.0,106150.0,0.72290417]
[1749399440768,0.19044284,106160.0,106150.0,0.72282417]
[1749399441414,0.19044284,106160.0,106150.0,0.43486417]
[1749399441570,0.19044284,106160.0,106150.0,0.72278417]
[1749399443604,0.19044284,106160.0,106150.0,0.73818417]
[1749399444148,0.19044284,106160.0,106150.0,0.73718417]
[1749399444748,0.19044284,106160.0,106150.0,0.69765837]
[1749399444960,0.19044284,106160.0,106150.0,0.69769837]
[1749399445162,0.19044284,106160.0,106150.0,0.40973837]
[1749399445371,0.20564284,106160.0,106150.0,0.69781837]
[1749399446909,0.19044284,106160.0,106150.0,0.69781837]
[1749399451506,0.20674284,106160.0,106150.0,0.40973837]
[1749399451727,0.20674284,106160.0,106150.0,0.69765837]
[1749399453720,0.20674284,106160.0,106150.0,0.40973837]
[1749399454146,0.19044284,106160.0,106150.0,0.40973837]
[1749399455158,0.22274284,106160.0,106150.0,0.40973837]
[1749399455380,0.22274284,106160.0,106150.0,0.017]
[1749399456948,0.19044284,106160.0,106150.0,1.13330532]
[1749399457159,0.19044284,106160.0,106150.0,0.94253776]
[1749399457378,0.19044284,106160.0,106150.0,1.23049776]
[1749399458067,0.19044284,106160.0,106150.0,1.43345123]
[1749399458392,0.19044284,106160.0,106150.0,1.45229231]
[1749399458624,0.00204797,106160.0,106150.0,3.12849414]
[1749399458843,0.00204797,106160.0,106150.0,3.12139816]
[1749399459298,0.00104797,106160.0,106150.0,3.11239816]
[1749399459709,4.797e-05,106160.0,106150.0,3.11239816]
[1749399459909,4.797e-05,106160.0,106150.0,3.11939816]
[1749399460112,4.797e-05,106160.0,106150.0,2.24571258]
[1749399460534,0.009467,106160.0,106150.0,2.24571258]
[1749399460747,4.797e-05,106160.0,106150.0,1.86947258]
[1749399460956,0.02825016,106190.0,106180.0,0.26205324]
[1749399461173,0.23542517,106190.0,106180.0,1.79841175]
[1749399461387,0.23542588,106190.0,106180.0,1.79841175]
[1749399461624,0.04708423,106190.0,106180.0,1.83611909]
[1749399461836,0.03766715,106190.0,106180.0,1.83611909]
[1749399462041,0.01883318,106190.0,106180.0,1.82670077]
[1749399462288,0.21657168,106200.0,106190.0,0.24319949]
[1749399462521,0.02824768,106200.0,106190.0,1.49608588]
[1749399462716,0.21657159,106200.0,106190.0,1.49608605]
[1749399463165,0.18832135,106210.0,106190.0,1.47725234]
[1749399463381,0.01883096,106200.0,106190.0,0.69010821]
[1749399463617,0.0282468,106200.0,106190.0,1.07446769]
[1749399463835,0.03766281,106200.0,106190.0,1.07446769]
[1749399464277,0.00941486,106210.0,106200.0,0.26301253]
[1749399464482,0.0094146,106210.0,106200.0,1.213149]
[1749399464690,0.02824441,106210.0,106200.0,1.213149]
[1749399464933,0.03765954,106210.0,106200.0,1.213149]
[1749399465301,0.22596634,106210.0,106200.0,1.20373361]
[1749399465509,0.23538164,106210.0,106200.0,1.20373361]
[1749399465707,0.23538164,106210.0,106200.0,1.21314918]
[1749399465708,0.02824539,106210.0,106200.0,1.21314918]
[1749399465919,0.00941477,106210.0,106200.0,1.25084957]
[1749399466125,0.0188299,106210.0,106200.0,2.03977246]
[1749399466595,0.01882963,106210.0,106200.0,2.03977246]
[1749399466839,0.02824414,106210.0,106200.0,1.24143418]
[1749399467289,0.03765927,106210.0,106200.0,1.24143418]
[1749399467704,0.22596545,106210.0,106200.0,1.23201879]
[1749399468789,0.23538067,106210.0,106200.0,1.23201879]
[1749399468949,0.22596616,106210.0,106200.0,1.23201879]
[1749399469914,0.22596616,106210.0,106200.0,1.24143454]
[1749399470122,0.18835811,106230.0,106200.0,1.52090216]
[1749399470324,0.00941371,106220.0,106210.0,0.74765947]
[1749399470529,0.03765625,106220.0,106210.0,1.57524295]
[1749399470735,0.04707067,106220.0,106210.0,1.57524295]
[1749399470886,0.04707067,106220.0,106210.0,1.56582827]
[1749399471505,0.04707067,106220.0,106210.0,1.57524295]
[1749399471506,0.02824254,106220.0,106210.0,1.57524295]
[1749399471744,0.21653099,106220.0,106210.0,1.5564135]
[1749399471914,0.21653099,106220.0,106210.0,1.56582836]
[1749399472325,0.21653099,106220.0,106210.0,1.56682836]
[1749399472952,0.02824254,106220.0,106210.0,1.57624304]
[1749399473171,0.03765696,106220.0,106210.0,1.57624304]
[1749399473367,0.03765696,106220.0,106210.0,1.56782836]
[1749399473768,0.22594541,106220.0,106210.0,1.56782836]
[1749399474402,0.02824254,106220.0,106210.0,1.56782836]
[1749399474796,0.02824254,106220.0,106210.0,1.5584135]
[1749399475037,0.02824254,106220.0,106210.0,1.55841359]
[1749399475193,0.21653099,106220.0,106210.0,1.55841368]
[1749399475418,0.20711702,106220.0,106210.0,1.56782881]
[1749399476002,0.20711702,106220.0,106210.0,1.86612881]
[1749399476619,0.20711702,106220.0,106210.0,1.89440981]
[1749399476821,0.19770278,106220.0,106210.0,1.89440981]
[1749399477291,0.19770278,106220.0,106210.0,1.90395056]
[1749399478647,0.19770278,106220.0,106210.0,1.92278055]
[1749399478869,0.19770278,106220.0,106210.0,1.92278011]
[1749399479090,0.19770278,106220.0,106210.0,1.89453526]
[1749399479634,0.01882839,106220.0,106210.0,1.9039503]
[1749399479865,0.01882839,106220.0,106210.0,1.92277993]
[1749399480101,0.02824281,106220.0,106210.0,2.26277993]
[1749399481007,0.01882786,106220.0,106210.0,2.26277993]
[1749399481210,0.0282421,106220.0,106210.0,2.26277993]
[1749399482415,0.03765643,106220.0,106210.0,2.26277993]
[1749399482953,0.04707085,106220.0,106210.0,2.26277993]
[1749399483363,0.04698378,106220.0,106210.0,2.26277993]
[1749399483573,0.02815503,106220.0,106210.0,2.26277993]
[1749399484058,0.01874079,106220.0,106210.0,2.26277993]
[1749399484267,0.0376559,106220.0,106210.0,2.26277993]
[1749399485081,0.04707023,106220.0,106210.0,2.26277993]
[1749399486190,0.04707085,106220.0,106210.0,2.26277993]
[1749399488379,0.2353593,106220.0,106210.0,2.2439503]
[1749399488585,0.22594541,106220.0,106210.0,2.25336516]
[1749399488795,0.2071172,106220.0,106210.0,1.65099873]
[1749399489003,0.2386172,106220.0,106210.0,0.76858045]
[1749399489209,0.2386172,106220.0,106210.0,0.74029945]
[1749399489416,0.2386172,106220.0,106210.0,0.7257586]
[1749399489863,0.2562475,106220.0,106210.0,0.7257586]
[1749399490084,0.2386172,106220.0,106210.0,0.7257586]
[1749399490937,0.2386172,106220.0,106210.0,0.4378386]
[1749399491148,0.25624624,106220.0,106210.0,0.01154075]
[1749399491373,0.27878415,106220.0,106210.0,0.01154075]
[1749399492178,0.27878521,106220.0,106210.0,0.01054075]
[1749399492386,0.2787851,106220.0,106210.0,0.01054075]
[1749399492794,0.26115511,106220.0,106210.0,0.01054075]
[1749399492971,0.26115511,106220.0,106210.0,0.00954075]
[1749399493180,0.27878504,106220.0,106210.0,0.05974407]
[1749399493384,0.25624713,106220.0,106210.0,0.05974407]
[1749399493554,0.2386172,106220.0,106210.0,0.05974407]
[1749399493752,0.26117592,106220.0,106210.0,0.05974407]
[1749399493958,0.25623858,106220.0,106210.0,0.05974407]
[1749399494154,0.25623859,106220.0,106210.0,0.05974407]
[1749399494395,0.2562386,106220.0,106210.0,0.05974407]
[1749399494597,0.2611804,106220.0,106210.0,0.05974407]
[1749399494828,0.2788018,106220.0,106210.0,0.05974407]
[1749399495030,0.22942131,106210.0,106200.0,0.5869]
[1749399495230,0.22942131,106210.0,106200.0,0.68329948]
[1749399496060,0.22942131,106210.0,106200.0,0.39469948]
[1749399496280,0.22942131,106210.0,106200.0,0.39569948]
[1749399496487,0.25198204,106210.0,106200.0,0.29902964]
[1749399496694,0.22942131,106210.0,106200.0,0.01142964]
[1749399496920,0.25197496,106210.0,106200.0,0.01142964]
[1749399497538,0.22942131,106210.0,106200.0,0.01042964]
[1749399498289,0.22942131,106210.0,106200.0,0.00942964]
[1749399498571,0.00941566,106200.0,106190.0,1.62626759]
[1749399498811,0.02824697,106200.0,106190.0,1.75566707]
[1749399499022,0.03766281,106200.0,106190.0,1.75566707]
[1749399499235,0.23540291,106200.0,106190.0,0.95732896]
[1749399499492,0.22598752,106200.0,106190.0,1.75566724]
[1749399500064,0.21657186,106200.0,106190.0,1.75566724]
[1749399501175,0.21657186,106200.0,106190.0,1.72975061]
[1749399501514,0.1977401,106200.0,106190.0,0.70766411]
[1749399501720,0.2294401,106200.0,106190.0,0.70766411]
[1749399501930,0.22002391,106200.0,106190.0,0.71708119]
[1749399502537,0.19773992,106200.0,106190.0,1.76501138]
[1749399502943,0.02824724,106200.0,106190.0,1.77442784]
[1749399503150,0.01883123,106200.0,106190.0,1.77442784]
[1749399503265,0.02824724,106200.0,106190.0,1.77442784]
[1749399503680,0.22598725,106200.0,106190.0,1.76501138]
[1749399504103,0.03766334,106200.0,106190.0,1.76501138]
[1749399504343,0.22598796,106200.0,106190.0,1.75559483]
[1749399504545,0.22598796,106200.0,106190.0,1.73909483]
[1749399505134,0.21657221,106200.0,106190.0,1.73909483]
[1749399505945,0.21657221,106200.0,106190.0,1.74851155]
[1749399506144,0.2071562,106200.0,106190.0,1.73909483]
[1749399507765,0.2071562,106200.0,106190.0,1.74851146]
[1749399508391,0.2071562,106200.0,106190.0,1.76471146]
[1749399508594,0.2071562,106200.0,106190.0,1.77412801]
[1749399508792,0.01883229,106200.0,106190.0,1.77412739]
[1749399508995,0.00941557,106200.0,106190.0,1.76471049]
[1749399509199,0.19772148,106210.0,106200.0,0.21228077]
[1749399509577,0.20713652,106210.0,106200.0,0.30868025]
[1749399509791,0.21655112,106210.0,106200.0,1.15755029]
[1749399509963,0.22596634,106210.0,106200.0,1.16696595]
[1749399510777,0.03766016,106210.0,106200.0,1.16696595]
[1749399510915,0.03766016,106210.0,106200.0,1.17638152]
[1749399511135,0.04707546,106210.0,106200.0,1.17638152]
[1749399511963,0.22596687,106210.0,106200.0,1.16696595]
[1749399512233,0.03766069,106210.0,106200.0,1.16696595]
[1749399514016,0.02824539,106210.0,106200.0,1.17638152]
[1749399514209,0.03766069,106210.0,106200.0,1.17638152]
[1749399514414,0.22596687,106210.0,106200.0,1.45585029]
[1749399514689,0.21655183,106210.0,106200.0,1.45585029]
[1749399515343,0.02824565,106210.0,106200.0,1.46526604]
[1749399515556,0.01883035,106210.0,106200.0,1.47468161]
[1749399516216,0.02824565,106210.0,106200.0,1.47468161]
[1749399516436,0.21655183,106210.0,106200.0,1.43965029]
[1749399518597,0.21655183,106210.0,106200.0,1.42415029]
[1749399518812,0.2071367,106210.0,106200.0,1.40531853]
[1749399519017,0.2071367,106210.0,106200.0,1.43360353]
[1749399519223,0.2071367,106210.0,106200.0,1.40531853]
[1749399521473,0.19772148,106210.0,106200.0,1.40531853]
[1749399525599,0.19772148,106210.0,106200.0,1.42161853]
[1749399525994,0.19772148,106210.0,106200.0,1.44743437]
[1749399527426,0.19772148,106210.0,106200.0,1.45685012]
[1749399527834,0.19772148,106210.0,106200.0,1.54529012]
[1749399530750,0.00941433,106220.0,106210.0,0.2216772]
[1749399530951,0.20711684,106220.0,106210.0,1.42862982]
[1749399531802,0.20711684,106220.0,106210.0,1.40980001]
[1749399532008,0.20711684,106220.0,106210.0,1.39460001]
[1749399532565,0.20711684,106220.0,106210.0,0.59626173]
[1749399533906,0.20711684,106220.0,106210.0,0.60567686]
[1749399534135,0.20711684,106220.0,106210.0,0.6150919]
[1749399535079,0.19770278,106220.0,106210.0,0.30866173]
[1749399535276,0.22930278,106220.0,106210.0,0.59614173]
[1749399535725,0.21988845,106220.0,106210.0,0.40779563]
[1749399536198,0.18828845,106220.0,106210.0,0.60551703]
[1749399536804,0.18828845,106220.0,106210.0,0.62061703]
[1749399538455,0.18828845,106220.0,106210.0,0.60551703]
[1749399538669,0.18828845,106220.0,106210.0,0.40779563]
[1749399540012,0.18828845,106220.0,106210.0,0.41725191]
[1749399540422,0.18828845,106220.0,106210.0,0.61497331]
[1749399540620,0.18828845,106220.0,106210.0,0.62438844]
[1749399541039,0.00941389,106220.0,106210.0,1.82108818]
[1749399541253,0.02824175,106220.0,106210.0,1.76124088]
[1749399541463,0.02824175,106220.0,106210.0,1.78952388]
[1749399542539,0.03765608,106220.0,106210.0,1.78952388]
[1749399542756,0.03765643,106220.0,106210.0,0.981771]
[1749399542969,0.0282421,106220.0,106210.0,1.78952396]
[1749399543582,0.01882751,106220.0,106210.0,1.78952396]
[1749399544011,0.02824157,106220.0,106210.0,1.78952396]
[1749399544428,0.03765581,106220.0,106210.0,1.78952396]
[1749399544647,0.02824157,106220.0,106210.0,1.79052396]
[1749399544851,0.03765581,106220.0,106210.0,1.79052396]
[1749399545059,0.03765581,106220.0,106210.0,0.99118568]
[1749399545314,0.03765581,106220.0,106210.0,1.78952396]
[1749399545770,0.03765572,106220.0,106210.0,1.78952396]
[1749399546009,0.02824157,106220.0,106210.0,1.78952396]
[1749399547544,0.01882751,106220.0,106210.0,1.78952396]
[1749399547745,0.02824157,106220.0,106210.0,1.78952396]
[1749399549336,0.01882751,106220.0,106210.0,1.78952396]
[1749399549545,0.02824157,106220.0,106210.0,1.78952396]
[1749399549957,0.01882751,106220.0,106210.0,1.78952396]
[1749399550166,0.02824157,106220.0,106210.0,1.78952396]
[1749399550586,0.01882751,106220.0,106210.0,1.78952396]
[1749399551197,0.02824157,106220.0,106210.0,1.78952396]
[1749399551372,0.01882751,106220.0,106210.0,1.78952396]
[1749399551571,0.02824157,106220.0,106210.0,1.78952396]
[1749399551984,0.19768421,106230.0,106220.0,0.23705769]
[1749399552187,0.2070973,106230.0,106220.0,1.51797545]
[1749399552381,0.2070973,106230.0,106220.0,1.50257545]
[1749399553132,0.2070973,106230.0,106220.0,1.49316139]
[1749399553261,0.2070973,106230.0,106220.0,0.69482311]
[1749399553667,0.19768421,106230.0,106220.0,0.40924033]
[1749399553939,0.22047086,106230.0,106220.0,0.39874033]
[1749399556030,0.22047086,106230.0,106220.0,0.11094033]
[1749399556232,0.22047086,106230.0,106220.0,0.39890033]
[1749399557246,0.22047086,106230.0,106220.0,0.09639948]
[1749399557533,0.22047086,106230.0,106220.0,0.38427948]
[1749399558742,0.22047086,106230.0,106220.0,0.38423948]
[1749399559152,0.22047086,106230.0,106220.0,0.42643736]
[1749399563478,0.22047086,106230.0,106220.0,0.38423948]
[1749399571297,0.22047086,106230.0,106220.0,0.09639948]
[1749399571513,0.22047086,106230.0,106220.0,0.38395948]
[1749399573610,0.22047086,106230.0,106220.0,0.09639948]
[1749399584534,0.18827086,106230.0,106220.0,0.74489441]
[1749399584738,0.18827086,106230.0,106220.0,0.94024378]
[1749399584940,0.18827086,106230.0,106220.0,0.93082945]
[1749399585150,0.18827086,106230.0,106220.0,0.94024378]
[1749399585375,0.20709717,106230.0,106220.0,1.54825851]
[1749399585581,0.20709717,106230.0,106220.0,0.94965784]
[1749399585787,0.19768408,106230.0,106220.0,0.94024378]
[1749399586169,0.19768408,106230.0,106220.0,0.94965793]
[1749399586372,0.18827073,106230.0,106220.0,0.94024378]
[1749399587337,0.18827073,106230.0,106220.0,1.1488499]
[1749399587946,0.01882414,106240.0,106230.0,0.25463785]
[1749399588143,0.00941096,106250.0,106240.0,0.25391783]
[1749399588344,0.21646951,106250.0,106240.0,1.14811092]
[1749399588482,0.20705837,106250.0,106240.0,1.14811092]
[1749399588694,0.20705837,106250.0,106240.0,1.13869845]
[1749399589131,0.18830068,106260.0,106250.0,0.20705819]
[1749399589328,0.20712216,106260.0,106250.0,1.72437975]
[1749399589528,0.20703905,106260.0,106250.0,1.73379124]
[1749399589727,0.20703905,106260.0,106250.0,1.72437984]
[1749399589931,0.20703905,106260.0,106250.0,1.73379133]
[1749399590278,0.19762844,106260.0,106250.0,1.53614464]
[1749399590894,0.19762844,106260.0,106250.0,1.52673288]
[1749399591322,0.19762844,106260.0,106250.0,1.53614464]
[1749399591476,0.19762844,106260.0,106250.0,1.52673288]
[1749399593356,0.19762844,106260.0,106250.0,1.81241993]
[1749399593558,0.19762844,106260.0,106250.0,1.8218316]
[1749399593803,0.18821757,106260.0,106250.0,1.8218316]
[1749399594003,0.18821757,106260.0,106250.0,1.62418464]
[1749399594367,0.19762836,106260.0,106250.0,1.83124301]
[1749399594797,0.01882131,106260.0,106250.0,1.84065415]
[1749399595017,0.03763889,106270.0,106260.0,0.28131119]
[1749399595225,0.03763889,106270.0,106260.0,1.17550322]
[1749399595226,0.22583875,106270.0,106260.0,1.17550322]
[1749399595435,0.18821414,106290.0,106270.0,0.26245894]
[1749399595660,0.20699975,106280.0,106270.0,1.33974307]
[1749399595876,0.19759109,106280.0,106270.0,0.81626033]
[1749399596719,0.19759109,106280.0,106270.0,0.44074033]
[1749399597136,0.19759109,106280.0,106270.0,0.78476033]
[1749399602901,0.19759109,106280.0,106270.0,0.80076033]
[1749399604381,0.19759109,106280.0,106270.0,1.81126264]
[1749399604585,0.19759109,106280.0,106270.0,1.82067236]
[1749399604793,0.18818216,106280.0,106270.0,0.81586033]
[1749399605009,0.18818216,106280.0,106270.0,0.82535038]
[1749399606298,0.18818216,106280.0,106270.0,1.02851418]
[1749399606497,0.18818216,106280.0,106270.0,0.82149452]
[1749399611760,0.18818216,106280.0,106270.0,0.83090451]
[1749399612441,0.18821414,106290.0,106280.0,0.04734085]
[1749399612638,0.18821414,106290.0,106280.0,0.14609228]
[1749399612787,0.18821414,106290.0,106280.0,0.44439228]
[1749399612989,0.18821414,106290.0,106280.0,0.44204033]
[1749399613228,0.18821414,106290.0,106280.0,0.6490406]
[1749399613459,0.18821414,106290.0,106280.0,0.63963159]
[1749399613604,0.18821414,106290.0,106280.0,0.64913183]
[1749399613803,0.18821414,106290.0,106280.0,0.45154066]
[1749399614234,0.18821414,106290.0,106280.0,0.44213156]
[1749399614802,0.18821414,106290.0,106280.0,0.78457156]
[1749399618849,0.18821414,106290.0,106280.0,0.80087156]
[1749399619202,0.20579605,106290.0,106280.0,0.80087156]
[1749399619410,0.20579605,106290.0,106280.0,0.78457156]
[1749399620224,0.20579605,106290.0,106280.0,0.40933156]
[1749399620424,0.18821414,106290.0,106280.0,0.69641156]
[1749399621167,0.20584431,106290.0,106280.0,0.40933156]
[1749399621383,0.20584432,106290.0,106280.0,0.69637156]
[1749399622019,0.20584565,106290.0,106280.0,0.69637156]
[1749399622444,0.18821414,106290.0,106280.0,0.69637156]
[1749399622659,0.20584565,106290.0,106280.0,0.69637156]
[1749399623716,0.18821414,106290.0,106280.0,0.69637156]
[1749399623915,0.20584565,106290.0,106280.0,0.69637156]
[1749399624427,0.18821414,106290.0,106280.0,0.69637156]
[1749399624664,0.20584565,106290.0,106280.0,0.69637156]
[1749399624915,0.20584672,106290.0,106280.0,0.69637156]
[1749399625549,0.18821414,106290.0,106280.0,0.69637156]
[1749399625766,0.20584672,106290.0,106280.0,0.69637156]
[1749399625975,0.18821414,106290.0,106280.0,0.69637156]
[1749399626471,0.20584672,106290.0,106280.0,0.71167156]
[1749399626701,0.01763258,106290.0,106280.0,1.72345537]
[1749399626925,0.21520525,106290.0,106280.0,1.73286438]
[1749399627401,0.21520387,106290.0,106280.0,1.73286438]
[1749399627626,0.21520381,106290.0,106280.0,1.74227331]
[1749399627843,0.19757267,106290.0,106280.0,1.74227331]
[1749399628072,0.21520399,106290.0,106280.0,1.74227331]
[1749399628672,0.19757267,106290.0,106280.0,1.74227331]
[1749399628887,0.21519895,106290.0,106280.0,1.74227331]
[1749399629110,0.21520407,106290.0,106280.0,1.74227331]
[1749399629323,0.21520407,106290.0,106280.0,1.75168215]
[1749399630010,0.19757267,106290.0,106280.0,1.75168215]
[1749399630266,0.21520407,106290.0,106280.0,1.75168215]
[1749399630505,0.21520116,106290.0,106280.0,1.75168215]
[1749399630762,0.19757267,106290.0,106280.0,1.75168215]
[1749399631010,0.21520116,106290.0,106280.0,1.75168215]
[1749399631414,0.19757267,106290.0,106280.0,1.75168215]
[1749399631720,0.19757267,106290.0,106280.0,1.76354615]
[1749399631928,0.21520116,106290.0,106280.0,1.75413731]
[1749399632359,0.19757267,106290.0,106280.0,1.75413731]
[1749399633196,0.19757267,106290.0,106280.0,0.95634476]
[1749399634219,0.00940769,106290.0,106280.0,0.96575351]
[1749399634423,0.00940769,106290.0,106280.0,1.780045]
[1749399634424,0.02822289,106290.0,106280.0,1.780045]
[1749399634607,0.03763093,106290.0,106280.0,0.98225245]
[1749399634804,0.02822289,106290.0,106280.0,0.98225245]
[1749399635092,0.03763084,106290.0,106280.0,0.98225245]
[1749399635312,0.02822289,106290.0,106280.0,0.98225245]
[1749399635493,0.03763084,106290.0,106280.0,0.98225245]
[1749399635920,0.04703888,106290.0,106280.0,0.98225245]
[1749399636561,0.03763084,106290.0,106280.0,0.98225245]
[1749399636777,0.03763084,106290.0,106280.0,1.06989245]
[1749399636997,0.03763084,106290.0,106280.0,1.05339245]
[1749399637411,0.04703888,106290.0,106280.0,1.05339245]
[1749399638496,0.9815,106300.0,106290.0,0.23092889]
[1749399638711,0.9815,106300.0,106290.0,1.74054092]
[1749399638907,0.99090654,106300.0,106290.0,1.74054092]
[1749399639115,0.99090662,106300.0,106290.0,1.74054092]
[1749399639319,0.99090662,106300.0,106290.0,1.74074092]
[1749399640144,0.99090654,106300.0,106290.0,1.74074092]
[1749399640568,0.9815,106300.0,106290.0,1.74074092]
[1749399640780,0.99090654,106300.0,106290.0,1.74074092]
[1749399640983,1.00031334,106300.0,106290.0,1.74078092]
[1749399641203,1.00031325,106300.0,106290.0,1.74078092]
[1749399641611,0.99090654,106300.0,106290.0,1.74078092]
[1749399641930,0.9815,106300.0,106290.0,1.74098092]
[1749399642159,0.9815,106300.0,106290.0,1.45362092]
[1749399642363,0.9815,106300.0,106290.0,1.74098092]
[1749399643135,0.9815,106300.0,106290.0,1.74094092]
[1749399643553,0.9815,106300.0,106290.0,1.75022798]
[1749399643760,0.99090654,106300.0,106290.0,1.75018798]
[1749399643965,0.9815,106300.0,106290.0,1.75018798]
[1749399644165,0.9815,106300.0,106290.0,2.14018798]
[1749399646046,0.9815,106300.0,106290.0,1.94054798]
[1749399646226,0.9815,106300.0,106290.0,2.22778798]
[1749399646594,0.9815,106300.0,106290.0,1.88116498]
[1749399646800,0.9815,106300.0,106290.0,2.25600498]
[1749399647002,0.9815,106300.0,106290.0,1.96880498]
[1749399647201,0.9815,106300.0,106290.0,2.25600498]
[1749399648673,1.00972067,106300.0,106290.0,1.08719697]
[1749399648891,1.00031351,106300.0,106290.0,1.11542021]
[1749399649092,0.9815,106300.0,106290.0,1.49910021]
[1749399649306,1.00972049,106300.0,106290.0,1.12378021]
[1749399649507,1.00031351,106300.0,106290.0,1.49910021]
[1749399649711,1.00031351,106300.0,106290.0,1.49906021]
[1749399649916,1.00031342,106300.0,106290.0,2.29685276]
[1749399651913,1.00031342,106300.0,106290.0,2.29677276]
[1749399652494,1.0097204,106300.0,106290.0,2.29677276]
[1749399652719,1.01912764,106300.0,106290.0,1.49898021]
[1749399652841,1.0097204,106300.0,106290.0,1.49898021]
[1749399653042,1.01912747,106300.0,106290.0,1.49898021]
[1749399653644,1.0097204,106300.0,106290.0,1.49898021]
[1749399654167,1.01912764,106300.0,106290.0,1.48286021]
[1749399654375,1.01912756,106300.0,106290.0,1.48286021]
[1749399654574,1.0097204,106300.0,106290.0,1.48286021]
[1749399654952,1.01912747,106300.0,106290.0,1.48286021]
[1749399655159,1.01912747,106300.0,106290.0,1.48282021]
[1749399656667,1.01912747,106300.0,106290.0,1.10778021]
[1749399656873,1.01912747,106300.0,106290.0,1.48282021]
[1749399657696,1.02853463,106300.0,106290.0,1.46762021]
[1749399658354,1.02853525,106300.0,106290.0,1.46762021]
[1749399658673,1.02853525,106300.0,106290.0,1.46754021]
[1749399658877,1.00972085,106300.0,106290.0,1.09258021]
[1749399659078,1.01912801,106300.0,106290.0,1.46754021]
[1749399659281,1.01912801,106300.0,106290.0,1.48294021]
[1749399659622,1.01912801,106300.0,106290.0,1.48290021]
[1749399661340,1.01912801,106300.0,106290.0,2.08040514]
[1749399662708,1.00972085,106300.0,106290.0,1.70548514]
[1749399662997,1.00972085,106300.0,106290.0,2.08032514]
[1749399664784,1.01912801,106300.0,106290.0,2.08024514]
[1749399665020,1.02853525,106300.0,106290.0,1.09258021]
[1749399665223,1.02853525,106300.0,106290.0,2.06540514]
[1749399665224,1.01912801,106300.0,106290.0,2.06540514]